fUST/lending_fUST_20250624
["ID","MTS","AMOUNT","RATE_DAILY","PERIOD"]
[367295340,1750733448460,-460.0,0.00019786,2]
[367295341,1750733448470,-5784.28,0.00019786,2]
[367295342,1750733448479,-796.21,0.00019786,2]
[367295343,1750733448489,-911.52,0.00019786,2]
[367295344,1750733448498,-938.96,0.00019786,2]
[367295345,1750733448507,-460.0,0.00019786,2]
[367295346,1750733448516,-990.07,0.00019786,2]
[367295347,1750733448526,-2581.56,0.00019786,2]
[367295348,1750733448535,-871.77,0.00019786,2]
[367295349,1750733448545,-532.82,0.00019786,2]
[367295350,1750733448554,-191.77,0.00019787,2]
[367295351,1750733448564,-460.0,0.00019787,2]
[367295352,1750733448574,-152.438397,0.00019787,2]
[367295353,1750733448584,-347.85,0.00019787,2]
[367295354,1750733448594,-196.394611,0.00019787,2]
[367295355,1750733448603,-196.394611,0.00019787,2]
[367295356,1750733448616,-460.0,0.00019787,2]
[367295357,1750733448627,-151.0,0.00019787,2]
[367295358,1750733448636,-460.0,0.00019787,2]
[367295359,1750733448646,-460.0,0.00019787,2]
[367295360,1750733448656,-460.0,0.00019787,2]
[367295361,1750733448666,-460.0,0.00019787,2]
[367295362,1750733448675,-2429.223487,0.00019787,2]
[367295363,1750733448686,-2429.223487,0.00019787,2]
[367295364,1750733448695,-315.18089775,0.00019787,2]
[367295365,1750733448705,-787.26,0.00019787,2]
[367295366,1750733448715,-561.46,0.00019787,2]
[367295367,1750733448725,-460.0,0.00019787,2]
[367295368,1750733448734,-460.0,0.00019787,2]
[367295369,1750733448743,-460.0,0.00019787,2]
[367295370,1750733448752,-349.565807,0.00019787,2]
[367295371,1750733448762,-460.0,0.00019787,2]
[367295372,1750733448771,-349.565807,0.00019787,2]
[367295373,1750733448781,-568.89,0.00019787,2]
[367295374,1750733448791,-460.0,0.00019787,2]
[367295375,1750733448801,-151.0,0.00019787,2]
[367295376,1750733448810,-184.42,0.00019787,2]
[367295377,1750733448821,-188.365935,0.00019787,2]
[367295378,1750733448830,-188.365935,0.00019787,2]
[367295379,1750733448840,-324.01057541,0.00019787,2]
[367295380,1750733448849,-151.0,0.00019787,2]
[367295381,1750733448859,-289.34,0.00019787,2]
[367295382,1750733448870,-691.38,0.00019787,2]
[367295383,1750733448879,-460.0,0.00019787,2]
[367295384,1750733448889,-460.0,0.00019787,2]
[367295385,1750733448898,-460.0,0.00019787,2]
[367295386,1750733448908,-194.1828,0.00019787,2]
[367295387,1750733448917,-460.0,0.00019787,2]
[367295388,1750733448926,-151.0,0.00019787,2]
[367295389,1750733448936,-194.1828,0.00019787,2]
[367295390,1750733448946,-151.0,0.00019787,2]
[367295391,1750733448956,-368.364664,0.00019787,2]
[367295392,1750733448965,-460.0,0.00019787,2]
[367295393,1750733448974,-151.0,0.00019787,2]
[367295394,1750733448983,-368.364664,0.00019787,2]
[367295395,1750733448993,-151.0,0.00019787,2]
[367295396,1750733449003,-460.0,0.00019787,2]
[367295397,1750733449013,-460.0,0.00019787,2]
[367295398,1750733449024,-460.0,0.00019787,2]
[367295399,1750733449034,-151.0,0.00019787,2]
[367295400,1750733449044,-233.112714,0.00019787,2]
[367295401,1750733449055,-436.418514,0.00019787,2]
[367295402,1750733449064,-436.418514,0.00019787,2]
[367295403,1750733449074,-428.316955,0.00019787,2]
[367295404,1750733449084,-1223.44,0.00019787,2]
[367295405,1750733449098,-460.0,0.00019787,2]
[367295406,1750733449108,-151.0,0.00019787,2]
[367295407,1750733449117,-523.84781787,0.00019787,2]
[367295408,1750733449127,-460.0,0.00019794,2]
[367295409,1750733449137,-460.0,0.00019796,2]
[367295410,1750733449146,-263.58212928,0.00019796,2]
[367295411,1750733449155,-460.63396113,0.00019796,2]
[367295412,1750733449166,-156.27451164,0.00019796,2]
[367295413,1750733449175,-460.0,0.00019796,2]
[367295414,1750733449275,-460.0,0.00019796,2]
[367295415,1750733449286,-2655.49,0.00019796,2]
[367295416,1750733449295,-460.0,0.00019796,2]
[367295417,1750733449304,-771.27,0.00019796,2]
[367295418,1750733449314,-372.59023255,0.00019796,2]
[367295419,1750733449323,-460.0,0.00019796,2]
[367295420,1750733449332,-2310.46,0.00019796,2]
[367295421,1750733449342,-254.725769,0.00019796,2]
[367295422,1750733449352,-254.725769,0.00019796,2]
[367295423,1750733449361,-3453.32,0.00019796,2]
[367295424,1750733449370,-878.40703804,0.00019796,2]
[367295425,1750733449542,-529.87296196,0.00019796,2]
[367295426,1750733449552,-868.20392113,0.00019796,2]
[367295427,1750733449565,-1603.24607887,0.00019796,2]
[367295428,1750733449575,-460.0,0.00019796,2]
[367295429,1750733449585,-460.0,0.00019796,2]
[367295430,1750733449595,-1420.387748,0.00019796,2]
[367295431,1750733449606,-1420.387748,0.00019796,2]
[367295432,1750733449620,-1192.15423309,0.00019796,2]
[367295433,1750733449906,-5.52436902,0.00019227,2]
[367295434,1750733451249,-58.62760827,0.00019198,2]
[367295435,1750733535652,5046.44685425,0.00024,30]
[367295436,1750733555477,5003.22501675,0.00026161,60]
[367295438,1750733607539,330.46416837,0.00018668,2]
[367295439,1750733608823,157.43,0.00019,2]
[367295440,1750733608844,219.86566195,0.00019,2]
[367295441,1750733611335,181.3433977,0.00019,2]
[367295442,1750733657197,168.0,0.00019075,2]
[367295444,1750733759057,306.9155177,0.00026161,60]
[367295445,1750733824074,372.327637,0.00013699,2]
[367295447,1750733860122,168.0,0.00018724,2]
[367295448,1750733860567,5000.0,0.00018692,2]
[367295449,1750733860724,5000.0,0.00016192,2]
[367295450,1750733872793,216.76739931,0.00019098,2]
[367295451,1750733972367,9999.91,0.000191,2]
[367295452,1750734118139,189.67147437,0.00019087,2]
[367295453,1750734216962,177.65126294,0.00018083,2]
[367295454,1750734283578,184.0,0.00018616,2]
[367295455,1750734285852,184.0,0.00018816,2]
[367295456,1750734286254,160.0,0.00019091,5]
[367295457,1750734286602,160.0,0.00018884,4]
[367295458,1750734286957,160.0,0.00018677,3]
[367295459,1750734291392,184.0,0.00018528,2]
[367295460,1750734296173,184.0,0.00019039,2]
[367295461,1750734301790,184.0,0.00018339,2]
[367295462,1750734308435,184.0,0.00019072,2]
[367295463,1750734318369,184.0,0.00018747,2]
[367295464,1750734368548,165.9625401,0.00019087,2]
[367295465,1750734406068,787.41,0.00024658,120]
[367295466,1750734418521,1181.11,0.00024658,120]
[367295472,1750734440107,1181.1,0.00024658,120]
[367295473,1750734450096,-245.238643,0.00019178,2]
[367295474,1750734450117,-196.9137959,0.00019178,2]
[367295475,1750734450137,-300.0,0.00019184,2]
[367295476,1750734450158,-40.89527122,0.00019184,2]
[367295477,1750734451664,10000.0,0.00024,30]
[367295478,1750734454353,-154.60446803,0.00019184,2]
[367295495,1750734619077,165.96254006,0.00019086,2]
[367295567,1750734632456,14222.3087767,0.00018187,2]
[367295588,1750734633999,3000.0,0.00024,30]
[367295591,1750734638196,-300.0,0.00019184,2]
[367295592,1750734638207,-300.0,0.00019184,2]
[367295593,1750734638217,-168.0,0.00019184,2]
[367295594,1750734638227,-1200.0,0.00019184,2]
[367295595,1750734638238,-187.0962295,0.00019185,2]
[367295596,1750734638248,-460.0,0.00019185,2]
[367295597,1750734638257,-460.0,0.00019185,2]
[367295598,1750734638269,-460.0,0.00019185,2]
[367295599,1750734638281,-342.54926142,0.00019185,2]
[367295600,1750734638307,-196.78072783,0.00019185,2]
[367295601,1750734638317,-460.0,0.00019185,2]
[367295602,1750734638327,-2155.91,0.00019185,2]
[367295603,1750734638337,-460.0,0.00019185,2]
[367295604,1750734638348,-460.0,0.00019185,2]
[367295605,1750734638358,-460.0,0.00019185,2]
[367295606,1750734638370,-460.0,0.00019185,2]
[367295607,1750734638379,-460.0,0.00019185,2]
[367295608,1750734638388,-192.86029431,0.00019185,2]
[367295609,1750734638398,-460.0,0.00019185,2]
[367295610,1750734638407,-500.0,0.00019185,2]
[367295611,1750734638417,-500.0,0.00019185,2]
[367295612,1750734638427,-500.0,0.00019185,2]
[367295613,1750734638437,-500.0,0.00019185,2]
[367295614,1750734638447,-265.24103414,0.00019185,2]
[367295615,1750734638457,-500.0,0.00019185,2]
[367295616,1750734638466,-500.0,0.00019185,2]
[367295617,1750734638475,-500.0,0.00019185,2]
[367295618,1750734638483,-500.0,0.00019185,2]
[367295619,1750734638493,-500.0,0.00019185,2]
[367295620,1750734638503,-500.0,0.00019185,2]
[367295621,1750734638513,-500.0,0.00019185,2]
[367295622,1750734638523,-500.0,0.00019185,2]
[367295623,1750734638532,-500.0,0.00019185,2]
[367295624,1750734638541,-550.15873,0.00019185,2]
[367295625,1750734638552,-500.0,0.00019185,2]
[367295626,1750734638561,-250.0,0.00019185,2]
[367295627,1750734638571,-476.5441236,0.00019186,2]
[367295628,1750734638581,-514.67527901,0.00019186,2]
[367295629,1750734638590,-370.0,0.00019186,2]
[367295630,1750734638600,-460.0,0.00019186,2]
[367295631,1750734638610,-460.0,0.00019186,2]
[367295632,1750734638619,-460.0,0.00019186,2]
[367295633,1750734638629,-460.0,0.00019186,2]
[367295634,1750734638639,-460.0,0.00019186,2]
[367295635,1750734638650,-460.0,0.00019186,2]
[367295636,1750734638661,-460.0,0.00019186,2]
[367295637,1750734638670,-460.0,0.00019186,2]
[367295638,1750734638680,-471.2917059,0.00019186,2]
[367295639,1750734638690,-460.0,0.00019186,2]
[367295640,1750734638699,-2146.74,0.00019186,2]
[367295641,1750734638710,-2602.89,0.00019186,2]
[367295642,1750734638721,-460.0,0.00019186,2]
[367295643,1750734638730,-460.0,0.00019186,2]
[367295644,1750734638741,-939.11,0.00019186,2]
[367295645,1750734638750,-460.0,0.00019186,2]
[367295646,1750734638760,-460.0,0.00019186,2]
[367295647,1750734638770,-465.78,0.00019186,2]
[367295648,1750734638780,-2021.02,0.00019186,2]
[367295649,1750734638789,-460.0,0.00019186,2]
[367295650,1750734638799,-460.0,0.00019186,2]
[367295651,1750734638808,-460.0,0.00019186,2]
[367295652,1750734638818,-1914.93,0.00019186,2]
[367295653,1750734638829,-3353.21,0.00019186,2]
[367295654,1750734638839,-460.0,0.00019186,2]
[367295655,1750734638848,-460.0,0.00019186,2]
[367295656,1750734638858,-1381.75,0.00019186,2]
[367295657,1750734638868,-460.0,0.00019186,2]
[367295658,1750734638878,-737.82,0.00019186,2]
[367295659,1750734638887,-1173.71,0.00019186,2]
[367295660,1750734638896,-915.86,0.00019186,2]
[367295661,1750734638905,-1736.56,0.00019186,2]
[367295662,1750734638914,-672.1,0.00019186,2]
[367295663,1750734638924,-460.0,0.00019186,2]
[367295664,1750734638933,-460.0,0.00019186,2]
[367295665,1750734638942,-460.0,0.00019186,2]
[367295666,1750734638952,-900.79,0.00019186,2]
[367295667,1750734638961,-656.29,0.00019186,2]
[367295668,1750734638974,-1756.84067045,0.00019186,2]
[367295669,1750734638983,-500.0,0.00019186,2]
[367295670,1750734638993,-500.0,0.00019186,2]
[367295671,1750734639003,-500.0,0.00019186,2]
[367295672,1750734639012,-500.0,0.00019186,2]
[367295673,1750734639022,-500.0,0.00019186,2]
[367295674,1750734639031,-514.63180266,0.00019186,2]
[367295675,1750734639042,-500.0,0.00019186,2]
[367295676,1750734639051,-500.0,0.00019186,2]
[367295677,1750734639062,-500.0,0.00019186,2]
[367295678,1750734639072,-500.0,0.00019186,2]
[367295679,1750734639082,-500.0,0.00019186,2]
[367295680,1750734639093,-207.4,0.00019186,2]
[367295681,1750734639103,-500.0,0.00019186,2]
[367295682,1750734639113,-500.0,0.00019186,2]
[367295683,1750734639123,-500.0,0.00019186,2]
[367295684,1750734639134,-500.0,0.00019186,2]
[367295685,1750734639143,-500.0,0.00019186,2]
[367295686,1750734639153,-500.0,0.00019186,2]
[367295687,1750734639162,-500.0,0.00019186,2]
[367295688,1750734639172,-500.0,0.00019186,2]
[367295689,1750734639181,-500.0,0.00019186,2]
[367295690,1750734639191,-500.0,0.00019186,2]
[367295691,1750734639353,-5000.0,0.00019186,2]
[367295692,1750734639363,-25000.0,0.00019186,2]
[367295693,1750734639373,-19473.80912849,0.00019186,2]
[367295694,1750734639382,-176.75,0.00019187,3]
[367295695,1750734639391,-530.28,0.00019187,3]
[367295696,1750734639401,-2009.35,0.00019188,3]
[367295697,1750734639410,-1004.68,0.00019188,3]
[367295698,1750734639419,-502.34,0.00019188,3]
[367295699,1750734639428,-251.17,0.00019188,3]
[367295700,1750734639437,-753.51,0.00019188,3]
[367295701,1750734639446,-353.5,0.00019188,3]
[367295702,1750734639455,-460.0,0.00019196,2]
[367295703,1750734639463,-387.89080259,0.00019196,2]
[367295704,1750734639473,-466.08236899,0.00019196,2]
[367295705,1750734639482,-460.0,0.00019196,2]
[367295706,1750734639491,-186.72528341,0.00019196,2]
[367295707,1750734639500,-460.0,0.00019196,2]
[367295708,1750734639509,-230.90617084,0.00019196,2]
[367295709,1750734639519,-460.0,0.00019196,2]
[367295710,1750734639528,-460.0,0.00019196,2]
[367295711,1750734639537,-460.0,0.00019196,2]
[367295712,1750734639546,-460.0,0.00019196,2]
[367295713,1750734639556,-475.07225662,0.00019196,2]
[367295714,1750734639565,-460.0,0.00019196,2]
[367295715,1750734639574,-460.0,0.00019196,2]
[367295716,1750734639583,-574.91,0.00019196,2]
[367295717,1750734639593,-460.0,0.00019196,2]
[367295718,1750734639602,-460.0,0.00019196,2]
[367295719,1750734639611,-403.0184,0.00019196,2]
[367295720,1750734639621,-460.0,0.00019196,2]
[367295721,1750734639631,-801.98,0.00019196,2]
[367295722,1750734639641,-460.0,0.00019196,2]
[367295723,1750734639650,-460.0,0.00019196,2]
[367295724,1750734639659,-460.0,0.00019196,2]
[367295725,1750734639672,-460.0,0.00019196,2]
[367295726,1750734639681,-1199.09,0.00019196,2]
[367295727,1750734639690,-765.11,0.00019196,2]
[367295728,1750734639700,-829.72,0.00019196,2]
[367295729,1750734639709,-460.0,0.00019196,2]
[367295730,1750734639719,-460.0,0.00019196,2]
[367295731,1750734639729,-460.0,0.00019196,2]
[367295732,1750734639738,-1200.67,0.00019196,2]
[367295733,1750734639748,-460.0,0.00019196,2]
[367295734,1750734639757,-460.0,0.00019196,2]
[367295735,1750734639766,-460.0,0.00019197,2]
[367295736,1750734639775,-460.0,0.00019197,2]
[367295737,1750734639785,-460.0,0.00019197,2]
[367295738,1750734639797,-460.0,0.00019197,2]
[367295739,1750734639809,-460.0,0.00019197,2]
[367295741,1750734639818,-460.0,0.00019197,2]
[367295742,1750734639828,-460.0,0.00019197,2]
[367295744,1750734639837,-460.0,0.00019197,2]
[367295746,1750734639846,-460.0,0.00019197,2]
[367295747,1750734639855,-460.0,0.00019197,2]
[367295748,1750734639865,-460.0,0.00019197,2]
[367295750,1750734639874,-460.0,0.00019197,2]
[367295752,1750734639883,-460.0,0.00019197,2]
[367295754,1750734639892,-460.0,0.00019197,2]
[367295756,1750734639901,-460.0,0.00019197,2]
[367295758,1750734639910,-462.60675646,0.00019197,2]
[367295759,1750734639922,-460.0,0.00019197,2]
[367295760,1750734639937,-460.0,0.00019197,2]
[367295761,1750734639948,-460.0,0.00019197,2]
[367295762,1750734639958,-152.01700912,0.00019197,2]
[367295763,1750734639967,-460.0,0.00019197,2]
[367295764,1750734639981,-460.0,0.00019197,2]
[367295765,1750734639990,-460.0,0.00019197,2]
[367295766,1750734639999,-460.0,0.00019197,2]
[367295767,1750734640008,-469.72503306,0.00019197,2]
[367295768,1750734640018,-460.0,0.00019197,2]
[367295769,1750734640028,-460.0,0.00019197,2]
[367295771,1750734640037,-460.0,0.00019197,2]
[367295773,1750734640047,-460.0,0.00019197,2]
[367295775,1750734640057,-460.0,0.00019197,2]
[367295777,1750734640066,-460.0,0.00019197,2]
[367295779,1750734640076,-625.0,0.00019197,2]
[367295781,1750734640085,-460.0,0.00019197,2]
[367295783,1750734640094,-460.0,0.00019197,2]
[367295785,1750734640104,-454.47563098,0.00019197,2]
[367295787,1750734640113,-460.0,0.00019197,2]
[367295789,1750734640123,-460.0,0.00019197,2]
[367295790,1750734640133,-560.98719148,0.00019197,2]
[367295792,1750734640143,-460.0,0.00019197,2]
[367295793,1750734640154,-460.0,0.00019197,2]
[367295794,1750734640163,-460.0,0.00019197,2]
[367295795,1750734640173,-460.0,0.00019197,2]
[367295796,1750734640184,-460.0,0.00019197,2]
[367295797,1750734640194,-467.82,0.00019197,2]
[367295798,1750734640204,-460.0,0.00019197,2]
[367295799,1750734640213,-460.0,0.00019197,2]
[367295800,1750734640223,-551.04,0.00019197,2]
[367295801,1750734640233,-460.0,0.00019197,2]
[367295802,1750734640243,-460.0,0.00019197,2]
[367295803,1750734640253,-460.0,0.00019197,2]
[367295804,1750734640262,-811.65,0.00019197,2]
[367295805,1750734640271,-460.0,0.00019197,2]
[367295806,1750734640281,-6180.17,0.00019197,2]
[367295807,1750734640291,-958.69,0.00019197,2]
[367295808,1750734640300,-460.0,0.00019197,2]
[367295809,1750734640310,-464.31205354,0.00019197,2]
[367295810,1750734640319,-889.41,0.00019197,2]
[367295811,1750734640329,-460.0,0.00019197,2]
[367295813,1750734640339,-1041.7,0.00019197,2]
[367295815,1750734640349,-890.43,0.00019197,2]
[367295817,1750734640358,-460.0,0.00019197,2]
[367295819,1750734640368,-460.0,0.00019197,2]
[367295821,1750734640377,-460.0,0.00019197,2]
[367295823,1750734640387,-460.0,0.00019197,2]
[367295825,1750734640396,-460.0,0.00019197,2]
[367295827,1750734640405,-460.0,0.00019197,2]
[367295829,1750734640415,-460.0,0.00019197,2]
[367295831,1750734640424,-802.31,0.00019197,2]
[367295833,1750734640434,-460.0,0.00019197,2]
[367295835,1750734640443,-366.11634467,0.00019197,2]
[367295837,1750734640452,-2374.63,0.00019197,2]
[367295839,1750734640462,-460.0,0.00019197,2]
[367295841,1750734640472,-460.0,0.00019197,2]
[367295843,1750734640481,-460.0,0.00019197,2]
[367295845,1750734640490,-460.0,0.00019197,2]
[367295847,1750734640499,-460.0,0.00019197,2]
[367295849,1750734640509,-460.0,0.00019197,2]
[367295851,1750734640519,-830.91,0.00019197,2]
[367295853,1750734640528,-460.0,0.00019197,2]
[367295855,1750734640537,-662.2,0.00019197,2]
[367295857,1750734640546,-460.0,0.00019197,2]
[367295859,1750734640556,-460.0,0.00019197,2]
[367295861,1750734640565,-460.0,0.00019197,2]
[367295863,1750734640575,-460.0,0.00019197,2]
[367295865,1750734640584,-460.0,0.00019197,2]
[367295867,1750734640594,-712.19,0.00019197,2]
[367295869,1750734640603,-460.0,0.00019197,2]
[367295871,1750734640612,-460.0,0.00019197,2]
[367295872,1750734640621,-460.0,0.00019197,2]
[367295874,1750734640631,-460.0,0.00019197,2]
[367295876,1750734640640,-460.0,0.00019197,2]
[367295878,1750734640649,-460.0,0.00019198,2]
[367295880,1750734640658,-460.49172932,0.00019198,2]
[367295882,1750734640667,-460.0,0.00019198,2]
[367295885,1750734640677,-460.0,0.00019198,2]
[367295887,1750734640687,-460.0,0.00019198,2]
[367295889,1750734640696,-460.0,0.00019198,2]
[367295891,1750734640705,-554.93,0.00019198,2]
[367295893,1750734640714,-606.87,0.00019198,2]
[367295895,1750734640723,-460.0,0.00019198,2]
[367295897,1750734640732,-486.25,0.00019198,2]
[367295899,1750734640741,-460.0,0.00019198,2]
[367295901,1750734640750,-460.0,0.00019198,2]
[367295902,1750734640760,-460.0,0.00019198,2]
[367295904,1750734640769,-460.0,0.00019198,2]
[367295906,1750734640778,-460.0,0.00019198,2]
[367295909,1750734640789,-460.0,0.00019198,2]
[367295911,1750734640798,-460.0,0.00019198,2]
[367295913,1750734640808,-400.81107327,0.00019198,2]
[367295914,1750734640817,-460.0,0.00019198,2]
[367295917,1750734640827,-723.65,0.00019198,2]
[367295918,1750734640836,-460.0,0.00019198,2]
[367295920,1750734640846,-460.0,0.00019198,2]
[367295922,1750734640855,-460.0,0.00019198,2]
[367295924,1750734640864,-460.0,0.00019198,2]
[367295926,1750734640873,-460.0,0.00019198,2]
[367295928,1750734640883,-460.0,0.00019198,2]
[367295930,1750734640892,-460.0,0.00019198,2]
[367295933,1750734640901,-460.0,0.00019198,2]
[367295934,1750734640910,-500.0,0.00019198,2]
[367295936,1750734640919,-811.96,0.00019198,2]
[367295937,1750734640928,-460.0,0.00019198,2]
[367295938,1750734640938,-460.0,0.00019198,2]
[367295939,1750734640949,-460.0,0.00019198,2]
[367295940,1750734640960,-460.0,0.00019198,2]
[367295941,1750734640970,-2658.65,0.00019198,2]
[367295942,1750734640980,-460.0,0.00019198,2]
[367295943,1750734640989,-460.0,0.00019198,2]
[367295944,1750734640999,-623.14,0.00019198,2]
[367295945,1750734641009,-2482.28,0.00019198,2]
[367295946,1750734641018,-460.0,0.00019198,2]
[367295947,1750734641027,-460.0,0.00019198,2]
[367295948,1750734641036,-460.0,0.00019198,2]
[367295949,1750734641047,-3926.03,0.00019198,2]
[367295950,1750734641057,-460.0,0.00019198,2]
[367295951,1750734641066,-460.0,0.00019198,2]
[367295952,1750734641075,-2433.37,0.00019198,2]
[367295953,1750734641085,-460.0,0.00019198,2]
[367295954,1750734641094,-460.0,0.00019198,2]
[367295955,1750734641103,-460.0,0.00019198,2]
[367295956,1750734641112,-460.0,0.00019198,2]
[367295957,1750734641121,-460.0,0.00019198,2]
[367295958,1750734641131,-1500.4,0.00019198,2]
[367295959,1750734641140,-460.0,0.00019198,2]
[367295960,1750734641149,-460.0,0.00019198,2]
[367295961,1750734641158,-460.0,0.00019198,2]
[367295962,1750734641168,-223.87,0.00019198,2]
[367295963,1750734641177,-460.0,0.00019198,2]
[367295964,1750734641187,-460.0,0.00019198,2]
[367295965,1750734641197,-460.0,0.00019198,2]
[367295966,1750734641206,-460.0,0.00019198,2]
[367295967,1750734641215,-460.0,0.00019198,2]
[367295968,1750734641224,-460.0,0.00019198,2]
[367295969,1750734641234,-460.0,0.00019227,2]
[367295970,1750734641243,-460.0,0.00019227,2]
[367295971,1750734641253,-460.0,0.00019227,2]
[367295972,1750734641262,-615.54,0.00019227,2]
[367295973,1750734641271,-538.46436094,0.00019227,2]
[367295975,1750734641281,-460.0,0.00019227,2]
[367295977,1750734641290,-460.0,0.00019227,2]
[367295979,1750734641300,-460.0,0.00019227,2]
[367295980,1750734641310,-460.0,0.00019227,2]
[367295981,1750734641319,-460.0,0.00019227,2]
[367295982,1750734641328,-460.0,0.00019227,2]
[367295983,1750734641338,-460.0,0.00019227,2]
[367295984,1750734641347,-275.20832754,0.00019227,2]
[367295985,1750734641357,-460.0,0.00019227,2]
[367295986,1750734641368,-460.0,0.00019227,2]
[367295987,1750734641378,-460.0,0.00019227,2]
[367295988,1750734641387,-500.0,0.00019227,2]
[367295989,1750734641397,-460.0,0.00019227,2]
[367295990,1750734641406,-460.0,0.00019227,2]
[367295991,1750734641415,-460.0,0.00019227,2]
[367295992,1750734641424,-460.0,0.00019227,2]
[367295993,1750734641434,-460.0,0.00019227,2]
[367295994,1750734641443,-460.0,0.00019227,2]
[367295995,1750734641452,-206.97852352,0.00019227,2]
[367295996,1750734641461,-460.0,0.00019227,2]
[367295997,1750734641470,-460.0,0.00019227,2]
[367295998,1750734641479,-460.0,0.00019227,2]
[367295999,1750734641489,-460.0,0.00019227,2]
[367296000,1750734641500,-460.0,0.00019227,2]
[367296001,1750734641509,-460.0,0.00019227,2]
[367296002,1750734641519,-460.0,0.00019227,2]
[367296003,1750734641528,-460.0,0.00019227,2]
[367296004,1750734641537,-460.0,0.00019227,2]
[367296005,1750734641546,-460.0,0.00019227,2]
[367296006,1750734641555,-460.0,0.00019227,2]
[367296007,1750734641565,-460.0,0.00019227,2]
[367296008,1750734641574,-460.0,0.00019227,2]
[367296009,1750734641584,-460.0,0.00019227,2]
[367296010,1750734641595,-460.0,0.00019227,2]
[367296011,1750734641603,-460.0,0.00019227,2]
[367296012,1750734641613,-466.22461809,0.00019227,2]
[367296013,1750734641623,-460.0,0.00019227,2]
[367296014,1750734641632,-460.0,0.00019227,2]
[367296015,1750734641642,-460.0,0.00019227,2]
[367296016,1750734641651,-460.0,0.00019227,2]
[367296017,1750734641660,-460.0,0.00019227,2]
[367296018,1750734641669,-460.0,0.00019236,2]
[367296019,1750734641678,-460.0,0.00019236,2]
[367296020,1750734641687,-460.0,0.00019236,2]
[367296021,1750734641697,-460.0,0.00019236,2]
[367296022,1750734641707,-460.0,0.00019236,2]
[367296023,1750734641716,-460.0,0.00019236,2]
[367296024,1750734641726,-583.58191807,0.00019236,2]
[367296025,1750734641735,-460.0,0.00019236,2]
[367296026,1750734641744,-6204.8566669,0.00019236,2]
[367296027,1750734641753,-520.21,0.00019236,2]
[367296028,1750734641869,-1317.68,0.00019236,2]
[367296029,1750734641879,-460.0,0.00019236,2]
[367296030,1750734641889,-460.0,0.00019236,2]
[367296031,1750734641898,-460.0,0.00019236,2]
[367296032,1750734641907,-518.26,0.00019236,2]
[367296033,1750734641916,-460.0,0.00019236,2]
[367296034,1750734641926,-1000.0,0.00019236,2]
[367296035,1750734641935,-460.0,0.00019236,2]
[367296036,1750734641944,-471.47755814,0.00019236,2]
[367296037,1750734641954,-460.0,0.00019236,2]
[367296038,1750734641963,-460.0,0.00019236,2]
[367296039,1750734641976,-460.0,0.00019236,2]
[367296040,1750734641986,-460.0,0.00019236,2]